[Event "Titled Tuesday Blitz June 21 Late 2022"]
[White "Sibilio, Mario"]
[Black "Capp, Stephen"]
[WhiteFideId "800422"]
[BlackFideId "2027089"]
[WhiteElo "2296"]
[BlackElo "2114"]
[Result "1-0"]
[Round "06"]
[TimeControl "180+1"]
[Date "2022.06.22"]
[WhiteClock "0:00:05"]
[BlackClock "0:00:10"]

1. Nf3 {[%clk 0:02:57]}  Nc6 {[%clk 0:02:57]} 2. e4 {[%clk 0:02:49]}  e5 {[%clk 0:02:56]} 3. Bb5 {[%clk 0:02:48]}  a6 {[%clk 0:02:53]} 4. Ba4 {[%clk 0:02:48]}  Nf6 {[%clk 0:02:52]} 5. d3 {[%clk 0:02:47]}  d6 {[%clk 0:02:46]} 6. c3 {[%clk 0:02:46]}  g6 {[%clk 0:02:46]} 7. d4 {[%clk 0:02:44]}  b5 {[%clk 0:02:42]} 8. Bb3 {[%clk 0:02:43]}  Bg7 {[%clk 0:02:38]} 9. Bg5 {[%clk 0:02:25]}  O-O {[%clk 0:02:36]} 10. Bd5 {[%clk 0:02:15]}  Bd7 {[%clk 0:02:28]} 11. Nbd2 {[%clk 0:01:50]}  h6 {[%clk 0:02:22]} 12. Bxf6 {[%clk 0:01:46]}  Qxf6 {[%clk 0:02:20]} 13. dxe5 {[%clk 0:01:39]}  dxe5 {[%clk 0:02:10]} 14. a4 {[%clk 0:01:32]}  g5 {[%clk 0:01:57]} 15. O-O {[%clk 0:01:22]}  g4 {[%clk 0:01:53]} 16. Ne1 {[%clk 0:01:21]}  Rad8 {[%clk 0:01:48]} 17. axb5 {[%clk 0:01:19]}  axb5 {[%clk 0:01:47]} 18. Ra6 {[%clk 0:01:17]}  Ra8 {[%clk 0:01:20]} 19. Rxa8 {[%clk 0:01:09]}  Rxa8 {[%clk 0:01:19]} 20. Nd3 {[%clk 0:01:08]}  Rd8 {[%clk 0:01:08]} 21. Nc5 {[%clk 0:00:54]}  h5 {[%clk 0:00:49]} 22. Qe2 {[%clk 0:00:49]}  b4 {[%clk 0:00:28]} 23. Nc4 {[%clk 0:00:34]}  bxc3 {[%clk 0:00:24]} 24. bxc3 {[%clk 0:00:30]}  Be8 {[%clk 0:00:22]} 25. Ne3 {[%clk 0:00:26]}  Ne7 {[%clk 0:00:21]} 26. Bc4 {[%clk 0:00:23]}  Ng6 {[%clk 0:00:20]} 27. g3 {[%clk 0:00:21]}  Bd7 {[%clk 0:00:17]} 28. Nxd7 {[%clk 0:00:18]}  Rxd7 {[%clk 0:00:17]} 29. f3 {[%clk 0:00:17]}  Qg5 {[%clk 0:00:14]} 30. fxg4 {[%clk 0:00:15]}  hxg4 {[%clk 0:00:14]} 31. Rf5 {[%clk 0:00:14]}  Qh6 {[%clk 0:00:13]} 32. Bd5 {[%clk 0:00:10]}  Bf8 {[%clk 0:00:13]} 33. Nxg4 {[%clk 0:00:08]}  Bc5+ {[%clk 0:00:13]} 34. Kg2 {[%clk 0:00:08]}  Qg7 {[%clk 0:00:12]} 35. Nf6+ {[%clk 0:00:08]}  Kf8 {[%clk 0:00:11]} 36. Nxd7+ {[%clk 0:00:07]}  Kg8 {[%clk 0:00:10]} 37. Nxc5 {[%clk 0:00:07]}  Nf4+ {[%clk 0:00:10]} 38. Rxf4 {[%clk 0:00:06]}  exf4 {[%clk 0:00:11]} 39. Qf3 {[%clk 0:00:05]}  fxg3 {[%clk 0:00:10]} 40. Qxg3 {[%clk 0:00:05]} 1-0


[Site "https://www.chess.com"]

[Event "Titled Tuesday Blitz June 21 Late 2022"]
[White "So, Wesley"]
[Black "Kravtsiv, Martyn"]
[WhiteFideId "5202213"]
[BlackFideId "14113147"]
[WhiteElo "2742"]
[BlackElo "2694"]
[Result "1-0"]
[Round "06"]
[TimeControl "180+1"]
[Date "2022.06.21"]
[WhiteClock "0:00:14"]
[BlackClock "0:00:03"]

1. e4 {[%clk 0:03:00]}  e5 {[%clk 0:02:59]} 2. Nf3 {[%clk 0:02:59]}  Nc6 {[%clk 0:02:59]} 3. Bc4 {[%clk 0:03:00]}  Nf6 {[%clk 0:02:58]} 4. d3 {[%clk 0:03:00]}  Be7 {[%clk 0:02:57]} 5. O-O {[%clk 0:03:00]}  O-O {[%clk 0:02:57]} 6. a4 {[%clk 0:02:59]}  d5 {[%clk 0:02:56]} 7. exd5 {[%clk 0:03:00]}  Nxd5 {[%clk 0:02:56]} 8. Re1 {[%clk 0:03:01]}  Bg4 {[%clk 0:02:56]} 9. h3 {[%clk 0:02:58]}  Bxf3 {[%clk 0:02:49]} 10. Qxf3 {[%clk 0:02:59]}  Nd4 {[%clk 0:02:49]} 11. Qd1 {[%clk 0:02:59]}  Bf6 {[%clk 0:02:43]} 12. c3 {[%clk 0:02:56]}  Ne6 {[%clk 0:02:41]} 13. Nd2 {[%clk 0:02:55]}  Ndf4 {[%clk 0:02:26]} 14. Ne4 {[%clk 0:02:39]}  Re8 {[%clk 0:02:16]} 15. h4 {[%clk 0:02:29]}  c6 {[%clk 0:02:00]} 16. g3 {[%clk 0:02:18]}  Nd5 {[%clk 0:01:59]} 17. a5 {[%clk 0:02:11]}  Be7 {[%clk 0:01:58]} 18. Qf3 {[%clk 0:02:07]}  Qc7 {[%clk 0:01:54]} 19. Kg2 {[%clk 0:02:05]}  Rad8 {[%clk 0:01:52]} 20. Bd2 {[%clk 0:01:59]}  Qc8 {[%clk 0:01:39]} 21. Ng5 {[%clk 0:01:51]}  Bxg5 {[%clk 0:01:08]} 22. hxg5 {[%clk 0:01:52]}  Nf8 {[%clk 0:01:08]} 23. Re4 {[%clk 0:01:49]}  Ng6 {[%clk 0:00:56]} 24. Rae1 {[%clk 0:01:45]}  Qd7 {[%clk 0:00:56]} 25. Qh5 {[%clk 0:01:40]}  b5 {[%clk 0:00:45]} 26. Ba2 {[%clk 0:01:15]}  Nc7 {[%clk 0:00:26]} 27. Bb1 {[%clk 0:01:11]}  Ne6 {[%clk 0:00:25]} 28. Rh1 {[%clk 0:01:04]}  Nef8 {[%clk 0:00:22]} 29. b4 {[%clk 0:01:02]}  a6 {[%clk 0:00:21]} 30. Be3 {[%clk 0:00:50]}  Qd5 {[%clk 0:00:21]} 31. Qe2 {[%clk 0:00:48]}  Ne6 {[%clk 0:00:20]} 32. Qh5 {[%clk 0:00:45]}  Nef8 {[%clk 0:00:19]} 33. c4 {[%clk 0:00:37]}  Qd7 {[%clk 0:00:17]} 34. Bb6 {[%clk 0:00:29]}  Rc8 {[%clk 0:00:15]} 35. Qg4 {[%clk 0:00:28]}  Qxg4 {[%clk 0:00:13]} 36. Rxg4 {[%clk 0:00:28]}  Ne6 {[%clk 0:00:13]} 37. Be3 {[%clk 0:00:27]}  Rcd8 {[%clk 0:00:13]} 38. Rc1 {[%clk 0:00:26]}  Rd6 {[%clk 0:00:12]} 39. Re4 {[%clk 0:00:22]}  Red8 {[%clk 0:00:12]} 40. f4 {[%clk 0:00:22]}  exf4 {[%clk 0:00:11]} 41. gxf4 {[%clk 0:00:23]}  Ne7 {[%clk 0:00:11]} 42. Re5 {[%clk 0:00:18]}  Ng6 {[%clk 0:00:10]} 43. Re4 {[%clk 0:00:19]}  Ne7 {[%clk 0:00:10]} 44. Kf3 {[%clk 0:00:19]}  Nf5 {[%clk 0:00:10]} 45. Bb6 {[%clk 0:00:19]}  R8d7 {[%clk 0:00:09]} 46. Rce1 {[%clk 0:00:18]}  Kf8 {[%clk 0:00:08]} 47. Bc5 {[%clk 0:00:18]}  Kg8 {[%clk 0:00:07]} 48. Bxd6 {[%clk 0:00:18]}  Rxd6 {[%clk 0:00:08]} 49. cxb5 {[%clk 0:00:15]}  cxb5 {[%clk 0:00:08]} 50. Rc1 {[%clk 0:00:16]}  Nfd4+ {[%clk 0:00:07]} 51. Ke3 {[%clk 0:00:15]}  g6 {[%clk 0:00:08]} 52. Ba2 {[%clk 0:00:15]}  Nf5+ {[%clk 0:00:06]} 53. Kd2 {[%clk 0:00:16]}  Ned4 {[%clk 0:00:05]} 54. Rc7 {[%clk 0:00:15]}  Nc6 {[%clk 0:00:03]} 55. Rxf7 {[%clk 0:00:14]} 1-0


[Site "https://www.chess.com"]

[Event "Titled Tuesday Blitz June 21 Late 2022"]
[White "Sohal, Tanraj"]
[Black "Holt, Conrad"]
[WhiteFideId "2608499"]
[BlackFideId "2034387"]
[WhiteElo "2200"]
[BlackElo "2586"]
[Result "0-1"]
[Round "06"]
[TimeControl "180+1"]
[Date "2022.06.21"]
[WhiteClock "0:00:01"]
[BlackClock "0:00:30"]

1. d4 {[%clk 0:03:00]}  d5 {[%clk 0:02:59]} 2. Nf3 {[%clk 0:03:01]}  Nf6 {[%clk 0:02:59]} 3. c4 {[%clk 0:03:01]}  c6 {[%clk 0:03:00]} 4. cxd5 {[%clk 0:03:02]}  cxd5 {[%clk 0:03:00]} 5. Nc3 {[%clk 0:03:02]}  Nc6 {[%clk 0:03:00]} 6. Bf4 {[%clk 0:03:03]}  Nh5 {[%clk 0:03:00]} 7. Bd2 {[%clk 0:02:58]}  e6 {[%clk 0:03:00]} 8. e3 {[%clk 0:02:55]}  Nf6 {[%clk 0:02:59]} 9. Bd3 {[%clk 0:02:55]}  Bd6 {[%clk 0:02:57]} 10. O-O {[%clk 0:02:56]}  O-O {[%clk 0:02:57]} 11. a3 {[%clk 0:02:57]}  e5 {[%clk 0:02:55]} 12. dxe5 {[%clk 0:02:57]}  Nxe5 {[%clk 0:02:55]} 13. Nxe5 {[%clk 0:02:57]}  Bxe5 {[%clk 0:02:56]} 14. h3 {[%clk 0:02:57]}  d4 {[%clk 0:02:43]} 15. exd4 {[%clk 0:02:55]}  Qxd4 {[%clk 0:02:41]} 16. Be3 {[%clk 0:02:54]}  Qh4 {[%clk 0:02:41]} 17. Qf3 {[%clk 0:02:46]}  Bg4 {[%clk 0:02:27]} 18. Qxb7 {[%clk 0:02:30]}  Rab8 {[%clk 0:02:27]} 19. Qc6 {[%clk 0:02:08]}  Rfc8 {[%clk 0:02:24]} 20. Qa4 {[%clk 0:02:02]}  Qh5 {[%clk 0:02:02]} 21. Ne4 {[%clk 0:01:48]}  Bxh3 {[%clk 0:01:52]} 22. Nxf6+ {[%clk 0:01:42]}  gxf6 {[%clk 0:01:52]} 23. Bf4 {[%clk 0:00:35]}  Bxg2 {[%clk 0:00:59]} 24. Kxg2 {[%clk 0:00:18]}  Qg4+ {[%clk 0:00:59]} 25. Kh1 {[%clk 0:00:11]}  Qf3+ {[%clk 0:00:57]} 26. Kg1 {[%clk 0:00:11]}  Qxd3 {[%clk 0:00:54]} 27. Bxe5 {[%clk 0:00:02]}  fxe5 {[%clk 0:00:55]} 28. Qg4+ {[%clk 0:00:02]}  Kh8 {[%clk 0:00:53]} 29. Rad1 {[%clk 0:00:02]}  Qc2 {[%clk 0:00:36]} 30. Kh2 {[%clk 0:00:02]}  Rg8 {[%clk 0:00:33]} 31. Qf3 {[%clk 0:00:02]}  Rb6 {[%clk 0:00:31]} 32. Rg1 {[%clk 0:00:01]}  Rh6+ {[%clk 0:00:30]} 0-1


[Site "https://www.chess.com"]

[Event "Titled Tuesday Blitz June 21 Late 2022"]
[White "Tanenbaum, Zachary"]
[Black "Adewumi, Tanitoluwa"]
[WhiteFideId "2060850"]
[BlackFideId "30966396"]
[WhiteElo "2175"]
[BlackElo "2537"]
[Result "0-1"]
[Round "06"]
[TimeControl "180+1"]
[Date "2022.06.21"]
[WhiteClock "0:00:02"]
[BlackClock "0:00:11"]

1. e4 {[%clk 0:03:00]}  c5 {[%clk 0:02:54]} 2. Nf3 {[%clk 0:02:55]}  e6 {[%clk 0:02:54]} 3. d4 {[%clk 0:02:55]}  cxd4 {[%clk 0:02:55]} 4. Nxd4 {[%clk 0:02:56]}  Nc6 {[%clk 0:02:29]} 5. Nc3 {[%clk 0:02:56]}  Qc7 {[%clk 0:02:26]} 6. g3 {[%clk 0:02:56]}  a6 {[%clk 0:02:26]} 7. Bg2 {[%clk 0:02:56]}  d6 {[%clk 0:02:27]} 8. O-O {[%clk 0:02:56]}  Be7 {[%clk 0:02:27]} 9. Re1 {[%clk 0:02:52]}  Bd7 {[%clk 0:02:26]} 10. Nxc6 {[%clk 0:02:49]}  bxc6 {[%clk 0:02:27]} 11. Qg4 {[%clk 0:02:40]}  e5 {[%clk 0:02:26]} 12. Qe2 {[%clk 0:02:37]}  Nf6 {[%clk 0:02:25]} 13. Be3 {[%clk 0:02:34]}  O-O {[%clk 0:02:25]} 14. Rad1 {[%clk 0:02:33]}  Be6 {[%clk 0:02:22]} 15. h3 {[%clk 0:02:08]}  Rfd8 {[%clk 0:02:19]} 16. f4 {[%clk 0:02:04]}  d5 {[%clk 0:01:49]} 17. fxe5 {[%clk 0:01:49]}  Nxe4 {[%clk 0:01:38]} 18. Nxe4 {[%clk 0:01:45]}  dxe4 {[%clk 0:01:38]} 19. Bf4 {[%clk 0:00:48]}  Qb6+ {[%clk 0:01:36]} 20. Kh2 {[%clk 0:00:48]}  Qxb2 {[%clk 0:01:28]} 21. Bxe4 {[%clk 0:00:48]}  Qc3 {[%clk 0:01:11]} 22. Qh5 {[%clk 0:00:40]}  g6 {[%clk 0:01:06]} 23. Qf3 {[%clk 0:00:35]}  Qxf3 {[%clk 0:00:55]} 24. Bxf3 {[%clk 0:00:35]}  Bxa2 {[%clk 0:00:55]} 25. Bxc6 {[%clk 0:00:35]}  Rxd1 {[%clk 0:00:50]} 26. Rxd1 {[%clk 0:00:35]}  Rc8 {[%clk 0:00:50]} 27. Be4 {[%clk 0:00:33]}  Be6 {[%clk 0:00:46]} 28. Ra1 {[%clk 0:00:20]}  Bc4 {[%clk 0:00:26]} 29. Bb7 {[%clk 0:00:18]}  Rb8 {[%clk 0:00:24]} 30. Be4 {[%clk 0:00:08]}  Rb2 {[%clk 0:00:21]} 31. Kg1 {[%clk 0:00:05]}  Bc5+ {[%clk 0:00:20]} 32. Kg2 {[%clk 0:00:06]}  Bb3 {[%clk 0:00:15]} 33. Rxa6 {[%clk 0:00:05]}  Bxc2 {[%clk 0:00:14]} 34. Bxc2 {[%clk 0:00:05]}  Rxc2+ {[%clk 0:00:14]} 35. Kf3 {[%clk 0:00:05]}  Kg7 {[%clk 0:00:14]} 36. Rc6 {[%clk 0:00:04]}  Rf2+ {[%clk 0:00:13]} 37. Ke4 {[%clk 0:00:03]}  Be7 {[%clk 0:00:13]} 38. Rc7 {[%clk 0:00:02]}  Kf8 {[%clk 0:00:11]} 0-1


[Site "https://www.chess.com"]

[Event "Titled Tuesday Blitz June 21 Late 2022"]
[White "Titichoca Daza, Daniel"]
[Black "Lobanov, Sergei"]
[WhiteFideId "3309550"]
[BlackFideId "24183750"]
[WhiteElo "1912"]
[BlackElo "2524"]
[Result "1/2-1/2"]
[Round "06"]
[TimeControl "180+1"]
[Date "2022.06.21"]
[WhiteClock "0:00:56"]
[BlackClock "0:00:15"]

1. e4 {[%clk 0:02:59]}  e5 {[%clk 0:03:00]} 2. Nc3 {[%clk 0:02:59]}  Nc6 {[%clk 0:02:58]} 3. Bc4 {[%clk 0:02:57]}  Nf6 {[%clk 0:02:56]} 4. d3 {[%clk 0:02:54]}  Na5 {[%clk 0:02:56]} 5. Nge2 {[%clk 0:02:54]}  Bc5 {[%clk 0:02:53]} 6. O-O {[%clk 0:02:51]}  Nxc4 {[%clk 0:02:51]} 7. dxc4 {[%clk 0:02:52]}  a5 {[%clk 0:02:47]} 8. b3 {[%clk 0:02:50]}  d6 {[%clk 0:02:47]} 9. Kh1 {[%clk 0:02:49]}  O-O {[%clk 0:02:46]} 10. Bg5 {[%clk 0:02:39]}  h6 {[%clk 0:02:43]} 11. Bh4 {[%clk 0:02:37]}  g5 {[%clk 0:02:43]} 12. Bg3 {[%clk 0:02:37]}  Nh5 {[%clk 0:02:31]} 13. f3 {[%clk 0:01:58]}  Be6 {[%clk 0:02:26]} 14. Bf2 {[%clk 0:01:55]}  Nf4 {[%clk 0:02:16]} 15. Bxc5 {[%clk 0:01:51]}  dxc5 {[%clk 0:02:16]} 16. Ng3 {[%clk 0:01:52]}  Qxd1 {[%clk 0:01:38]} 17. Rfxd1 {[%clk 0:01:53]}  Rad8 {[%clk 0:01:37]} 18. Kg1 {[%clk 0:01:47]}  c6 {[%clk 0:01:33]} 19. Kf2 {[%clk 0:01:47]}  Rd4 {[%clk 0:01:29]} 20. Nge2 {[%clk 0:01:47]}  Nxe2 {[%clk 0:01:22]} 21. Nxe2 {[%clk 0:01:48]}  Rdd8 {[%clk 0:01:22]} 22. Nc3 {[%clk 0:01:43]}  Rb8 {[%clk 0:01:10]} 23. Rd6 {[%clk 0:01:41]}  Rfc8 {[%clk 0:01:10]} 24. Rad1 {[%clk 0:01:40]}  Kf8 {[%clk 0:01:06]} 25. Na4 {[%clk 0:01:34]}  b6 {[%clk 0:01:06]} 26. Ke3 {[%clk 0:01:33]}  Ke7 {[%clk 0:01:06]} 27. g3 {[%clk 0:01:32]}  h5 {[%clk 0:00:53]} 28. h4 {[%clk 0:01:30]}  gxh4 {[%clk 0:00:45]} 29. gxh4 {[%clk 0:01:31]}  Rc7 {[%clk 0:00:37]} 30. f4 {[%clk 0:01:12]}  exf4+ {[%clk 0:00:37]} 31. Kxf4 {[%clk 0:01:12]}  Bg4 {[%clk 0:00:37]} 32. R1d2 {[%clk 0:01:11]}  Be6 {[%clk 0:00:35]} 33. Ke3 {[%clk 0:01:08]}  Rd7 {[%clk 0:00:24]} 34. e5 {[%clk 0:01:03]}  Bg4 {[%clk 0:00:20]} 35. Kf4 {[%clk 0:01:01]}  Rxd6 {[%clk 0:00:18]} 36. Rxd6 {[%clk 0:00:56]}  Bd7 {[%clk 0:00:15]} 1/2-1/2


[Site "https://www.chess.com"]

[Event "Titled Tuesday Blitz June 21 Late 2022"]
[White "Tologon tegin, Semetei"]
[Black "Romero Ruscalleda, Josep"]
[WhiteFideId "13800574"]
[BlackFideId "2231859"]
[WhiteElo "2174"]
[BlackElo "2385"]
[Result "1-0"]
[Round "06"]
[TimeControl "180+1"]
[Date "2022.06.22"]
[WhiteClock "0:01:01"]
[BlackClock "0:01:01"]

1. e4 {[%clk 0:02:58]}  g6 {[%clk 0:03:00]} 2. d4 {[%clk 0:02:57]}  Bg7 {[%clk 0:03:00]} 3. Nc3 {[%clk 0:02:55]}  d6 {[%clk 0:03:00]} 4. Nf3 {[%clk 0:02:52]}  a6 {[%clk 0:03:00]} 5. a4 {[%clk 0:02:51]}  Nc6 {[%clk 0:02:58]} 6. h3 {[%clk 0:02:49]}  e5 {[%clk 0:02:57]} 7. Be3 {[%clk 0:02:48]}  exd4 {[%clk 0:02:54]} 8. Nxd4 {[%clk 0:02:47]}  Nge7 {[%clk 0:02:55]} 9. Bc4 {[%clk 0:02:45]}  O-O {[%clk 0:02:54]} 10. O-O {[%clk 0:02:42]}  Nxd4 {[%clk 0:02:49]} 11. Bxd4 {[%clk 0:02:42]}  Be6 {[%clk 0:02:40]} 12. Bxe6 {[%clk 0:02:37]}  fxe6 {[%clk 0:02:40]} 13. Bxg7 {[%clk 0:02:37]}  Kxg7 {[%clk 0:02:40]} 14. f4 {[%clk 0:02:35]}  Nc6 {[%clk 0:02:38]} 15. Ne2 {[%clk 0:02:28]}  Qf6 {[%clk 0:02:34]} 16. c3 {[%clk 0:02:27]}  Rae8 {[%clk 0:02:32]} 17. Qd3 {[%clk 0:02:24]}  Qh4 {[%clk 0:02:18]} 18. Rf3 {[%clk 0:02:07]}  Rf7 {[%clk 0:02:14]} 19. Raf1 {[%clk 0:02:05]}  Ref8 {[%clk 0:02:12]} 20. Qc4 {[%clk 0:02:01]}  Nd8 {[%clk 0:02:12]} 21. a5 {[%clk 0:01:46]}  c6 {[%clk 0:02:11]} 22. Qd4+ {[%clk 0:01:45]}  Kg8 {[%clk 0:02:04]} 23. Qxd6 {[%clk 0:01:46]}  Qh5 {[%clk 0:01:57]} 24. b4 {[%clk 0:01:42]}  g5 {[%clk 0:01:56]} 25. Ng3 {[%clk 0:01:26]}  Qh4 {[%clk 0:01:49]} 26. f5 {[%clk 0:01:22]}  exf5 {[%clk 0:01:17]} 27. Nxf5 {[%clk 0:01:20]}  Rxf5 {[%clk 0:01:16]} 28. Rxf5 {[%clk 0:01:19]}  Nf7 {[%clk 0:01:15]} 29. Qe6 {[%clk 0:01:15]}  Qh5 {[%clk 0:01:13]} 30. g4 {[%clk 0:01:03]}  Qxh3 {[%clk 0:01:10]} 31. Rxg5+ {[%clk 0:01:01]}  Kh8 {[%clk 0:01:01]} 32. Qf6# {[%clk 0:01:01]} 1-0


[Site "https://www.chess.com"]

[Event "Titled Tuesday Blitz June 21 Late 2022"]
[White "Vivas Zamora, Fabian Ernesto"]
[Black "Bayo Milagro, Alvaro"]
[WhiteFideId "3902480"]
[BlackFideId "22275240"]
[WhiteElo "2488"]
[BlackElo "2593"]
[Result "0-1"]
[Round "06"]
[TimeControl "180+1"]
[Date "2022.06.22"]
[WhiteClock "0:00:01"]
[BlackClock "0:00:14"]

1. c4 {[%clk 0:02:57]}  Nf6 {[%clk 0:02:59]} 2. Nc3 {[%clk 0:02:56]}  g6 {[%clk 0:02:58]} 3. e4 {[%clk 0:02:51]}  d6 {[%clk 0:02:58]} 4. d4 {[%clk 0:02:51]}  Bg7 {[%clk 0:02:59]} 5. g3 {[%clk 0:02:51]}  O-O {[%clk 0:02:59]} 6. Nf3 {[%clk 0:02:51]}  Nc6 {[%clk 0:02:58]} 7. Bg2 {[%clk 0:02:51]}  Bg4 {[%clk 0:02:58]} 8. h3 {[%clk 0:02:26]}  Bxf3 {[%clk 0:02:56]} 9. Bxf3 {[%clk 0:02:26]}  Nd7 {[%clk 0:02:57]} 10. Be3 {[%clk 0:02:23]}  e5 {[%clk 0:02:57]} 11. d5 {[%clk 0:02:22]}  Nd4 {[%clk 0:02:57]} 12. Bg2 {[%clk 0:02:20]}  a5 {[%clk 0:02:54]} 13. O-O {[%clk 0:02:16]}  c5 {[%clk 0:02:53]} 14. dxc6 {[%clk 0:02:07]}  bxc6 {[%clk 0:02:53]} 15. Bxd4 {[%clk 0:01:57]}  exd4 {[%clk 0:02:53]} 16. Ne2 {[%clk 0:01:57]}  Qb6 {[%clk 0:02:50]} 17. b3 {[%clk 0:01:36]}  d3 {[%clk 0:02:49]} 18. Qxd3 {[%clk 0:01:36]}  Bxa1 {[%clk 0:02:50]} 19. Rxa1 {[%clk 0:01:37]}  Qc5 {[%clk 0:02:47]} 20. Rd1 {[%clk 0:01:37]}  Ne5 {[%clk 0:02:40]} 21. Qxd6 {[%clk 0:01:37]}  Qxd6 {[%clk 0:02:40]} 22. Rxd6 {[%clk 0:01:37]}  Rad8 {[%clk 0:02:41]} 23. c5 {[%clk 0:01:24]}  f6 {[%clk 0:02:06]} 24. f4 {[%clk 0:01:22]}  Rxd6 {[%clk 0:02:06]} 25. cxd6 {[%clk 0:01:22]}  Nf7 {[%clk 0:02:06]} 26. Nd4 {[%clk 0:01:14]}  Nxd6 {[%clk 0:02:05]} 27. Nxc6 {[%clk 0:01:13]}  Re8 {[%clk 0:01:46]} 28. e5 {[%clk 0:01:10]}  fxe5 {[%clk 0:01:47]} 29. fxe5 {[%clk 0:01:05]}  Nb5 {[%clk 0:01:43]} 30. Bd5+ {[%clk 0:00:54]}  Kg7 {[%clk 0:01:43]} 31. Bc4 {[%clk 0:00:50]}  Nc7 {[%clk 0:01:30]} 32. Kf2 {[%clk 0:00:49]}  Na8 {[%clk 0:01:17]} 33. e6 {[%clk 0:00:39]}  Nb6 {[%clk 0:00:59]} 34. e7 {[%clk 0:00:39]}  Nxc4 {[%clk 0:00:58]} 35. bxc4 {[%clk 0:00:40]}  Kf6 {[%clk 0:00:58]} 36. Ke3 {[%clk 0:00:38]}  Ke6 {[%clk 0:00:58]} 37. Kd4 {[%clk 0:00:28]}  Kd6 {[%clk 0:00:59]} 38. Nxa5 {[%clk 0:00:15]}  Rxe7 {[%clk 0:00:59]} 39. c5+ {[%clk 0:00:12]}  Kc7 {[%clk 0:00:59]} 40. Nc4 {[%clk 0:00:10]}  Re1 {[%clk 0:00:50]} 41. Ne3 {[%clk 0:00:08]}  Ra1 {[%clk 0:00:44]} 42. Nd5+ {[%clk 0:00:07]}  Kc6 {[%clk 0:00:36]} 43. Nf6 {[%clk 0:00:04]}  h5 {[%clk 0:00:31]} 44. Ng8 {[%clk 0:00:04]}  Rd1+ {[%clk 0:00:29]} 45. Ke5 {[%clk 0:00:04]}  Kxc5 {[%clk 0:00:28]} 46. Kf6 {[%clk 0:00:03]}  Rd3 {[%clk 0:00:19]} 47. g4 {[%clk 0:00:02]}  h4 {[%clk 0:00:18]} 48. Kg5 {[%clk 0:00:01]}  Rxh3 {[%clk 0:00:18]} 49. Ne7 {[%clk 0:00:02]}  Rh1 {[%clk 0:00:17]} 50. Nxg6 {[%clk 0:00:02]}  h3 {[%clk 0:00:18]} 51. Ne5 {[%clk 0:00:02]}  Kd4 {[%clk 0:00:16]} 52. Nf3+ {[%clk 0:00:03]}  Ke3 {[%clk 0:00:16]} 53. Ne5 {[%clk 0:00:01]}  h2 {[%clk 0:00:15]} 54. Kh4 {[%clk 0:00:02]}  Rc1 {[%clk 0:00:14]} 55. Kg5 {[%clk 0:00:01]}  h1=Q {[%clk 0:00:14]} 0-1


[Site "https://www.chess.com"]

[Event "Titled Tuesday Blitz June 21 Late 2022"]
[White "Wagner, Dennis"]
[Black "Tari, Aryan"]
[WhiteFideId "24650684"]
[BlackFideId "1510045"]
[WhiteElo "2355"]
[BlackElo "2567"]
[Result "0-1"]
[Round "06"]
[TimeControl "180+1"]
[Date "2022.06.21"]
[WhiteClock "0:00:11"]
[BlackClock "0:00:48"]

1. e4 {[%clk 0:03:00]}  c6 {[%clk 0:02:58]} 2. d4 {[%clk 0:03:00]}  d5 {[%clk 0:02:59]} 3. e5 {[%clk 0:03:01]}  Bf5 {[%clk 0:02:57]} 4. Nf3 {[%clk 0:03:01]}  e6 {[%clk 0:02:57]} 5. Be2 {[%clk 0:03:01]}  Ne7 {[%clk 0:02:57]} 6. c3 {[%clk 0:03:02]}  Ng6 {[%clk 0:02:50]} 7. O-O {[%clk 0:03:00]}  f6 {[%clk 0:02:50]} 8. Re1 {[%clk 0:02:28]}  Nd7 {[%clk 0:02:39]} 9. Bd3 {[%clk 0:02:27]}  Bxd3 {[%clk 0:02:24]} 10. Qxd3 {[%clk 0:02:27]}  fxe5 {[%clk 0:02:22]} 11. Nxe5 {[%clk 0:02:22]}  Ndxe5 {[%clk 0:02:13]} 12. dxe5 {[%clk 0:02:23]}  Bc5 {[%clk 0:02:13]} 13. Qh3 {[%clk 0:02:11]}  O-O {[%clk 0:02:01]} 14. Be3 {[%clk 0:02:01]}  Qb6 {[%clk 0:01:49]} 15. Nd2 {[%clk 0:01:34]}  Bxe3 {[%clk 0:01:39]} 16. Qxe3 {[%clk 0:01:06]}  Qxb2 {[%clk 0:01:39]} 17. Reb1 {[%clk 0:01:06]}  Qc2 {[%clk 0:01:34]} 18. Rxb7 {[%clk 0:01:07]}  Rfb8 {[%clk 0:01:24]} 19. Rxb8+ {[%clk 0:00:58]}  Rxb8 {[%clk 0:01:24]} 20. Qxa7 {[%clk 0:00:52]}  Rb2 {[%clk 0:01:21]} 21. Nf1 {[%clk 0:00:53]}  Qxc3 {[%clk 0:01:18]} 22. a4 {[%clk 0:00:44]}  d4 {[%clk 0:01:17]} 23. a5 {[%clk 0:00:42]}  Rb5 {[%clk 0:00:55]} 24. Qa8+ {[%clk 0:00:29]}  Nf8 {[%clk 0:00:54]} 25. Ra4 {[%clk 0:00:16]}  Rb1 {[%clk 0:00:48]} 26. Qa6 {[%clk 0:00:16]}  d3 {[%clk 0:00:48]} 27. Rf4 {[%clk 0:00:11]}  Rxf1+ {[%clk 0:00:48]} 0-1


[Site "https://www.chess.com"]

[Event "Titled Tuesday Blitz June 21 Late 2022"]
[White "Wagner, Dinara"]
[Black "Alexiadis, Hristos"]
[WhiteFideId "24157570"]
[BlackFideId "4249623"]
[WhiteElo "2216"]
[BlackElo "2416"]
[Result "1-0"]
[Round "06"]
[TimeControl "180+1"]
[Date "2022.06.21"]
[WhiteClock "0:02:07"]
[BlackClock "0:02:54"]

1. d4 {[%clk 0:03:00]}  Nf6 {[%clk 0:03:00]} 2. c4 {[%clk 0:03:00]}  e6 {[%clk 0:03:00]} 3. Nf3 {[%clk 0:03:00]}  b6 {[%clk 0:03:00]} 4. a3 {[%clk 0:03:00]}  Bb7 {[%clk 0:02:59]} 5. Nc3 {[%clk 0:03:00]}  c5 {[%clk 0:03:00]} 6. d5 {[%clk 0:03:00]}  exd5 {[%clk 0:03:00]} 7. cxd5 {[%clk 0:03:00]}  d6 {[%clk 0:03:01]} 8. e4 {[%clk 0:03:00]}  g6 {[%clk 0:03:02]} 9. Bd3 {[%clk 0:02:54]}  Bg7 {[%clk 0:03:02]} 10. O-O {[%clk 0:02:53]}  O-O {[%clk 0:03:03]} 11. h3 {[%clk 0:02:50]}  a6 {[%clk 0:03:03]} 12. a4 {[%clk 0:02:50]}  Nbd7 {[%clk 0:03:03]} 13. Bf4 {[%clk 0:02:50]}  Qc7 {[%clk 0:03:03]} 14. Re1 {[%clk 0:02:49]}  Rfe8 {[%clk 0:03:03]} 15. Bh2 {[%clk 0:02:48]}  c4 {[%clk 0:03:03]} 16. Bc2 {[%clk 0:02:45]}  Rab8 {[%clk 0:03:02]} 17. Nd4 {[%clk 0:02:43]}  Qc5 {[%clk 0:03:00]} 18. Qd2 {[%clk 0:02:22]}  Ne5 {[%clk 0:02:59]} 19. Rad1 {[%clk 0:02:18]}  Bc8 {[%clk 0:02:58]} 20. Nc6 {[%clk 0:02:06]}  Nxc6 {[%clk 0:02:57]} 21. dxc6 {[%clk 0:02:07]}  Qxc6 {[%clk 0:02:57]} 22. Bxd6 {[%clk 0:02:07]}  Rb7 {[%clk 0:02:54]} 23. e5 {[%clk 0:02:06]}  Nd7 {[%clk 0:02:54]} 24. Be4 {[%clk 0:02:07]} 1-0


[Site "https://www.chess.com"]